bitfinex/quotes_SOLUSD_20241125
["timestamp","ask_amount","ask_price","bid_price","bid_amount"]
[1732554185336,17.65362433,241.87,241.86,1.1057446]
[1732554186236,0.12549,241.86,241.85,5.2689364]
[1732554186403,17.77911433,241.86,241.85,5.2689364]
[1732554186607,17.65362433,241.86,241.85,5.2689364]
[1732554190111,17.77911433,241.86,241.85,5.2689364]
[1732554190322,17.77911433,241.86,241.76,7.1280364]
[1732554190323,0.12549,241.84,241.83,5.2689364]
[1732554190515,17.77911433,241.84,241.83,5.2689364]
[1732554191234,0.12549,241.82,241.76,0.4775364]
[1732554191405,17.77911433,241.77,241.76,0.4775364]
[1732554192126,17.65362433,241.77,241.76,0.4775364]
[1732554192331,17.77911433,241.77,241.76,0.4775364]
[1732554192520,17.77911433,241.77,241.63,10.2356]
[1732554192521,24.027864,241.76,241.63,6.0972]
[1732554192710,17.65362433,241.64,241.59,4.1392]
[1732554192909,17.65362433,241.64,241.59,24.1392]
[1732554193109,17.65362433,241.64,241.59,10.0]
[1732554193340,30.232364,241.76,241.58,15.0756]
[1732554193341,17.65362433,241.6,241.58,15.0756]
[1732554193637,17.65362433,241.59,241.52,0.4775364]
[1732554193806,17.65362433,241.57,241.52,0.4775364]
[1732554194007,17.65362433,241.56,241.52,0.4775364]
[1732554194208,17.65362433,241.53,241.52,0.4775364]
[1732554194421,28.89655124,241.53,241.52,0.4775364]
[1732554195453,29.02204124,241.53,241.52,0.4775364]
[1732554195630,28.89655124,241.53,241.52,0.4775364]
[1732554196045,28.89655124,241.56,241.52,0.4775364]
[1732554196249,28.89655124,241.54,241.52,0.4775364]
[1732554196423,28.89655124,241.53,241.52,0.4775364]
[1732554198851,29.02204124,241.53,241.52,0.4775364]
[1732554200322,28.89655124,241.53,241.52,0.4775364]
[1732554201148,28.89655124,241.54,241.52,0.4775364]
[1732554201652,8.69,241.66,241.52,0.4775364]
[1732554201825,28.89655124,241.59,241.52,10.4775364]
[1732554202021,28.89655124,241.6,241.53,4.1402]
[1732554202232,28.89655124,241.68,241.52,55.56208764]
[1732554202233,28.89655124,241.58,241.52,16.6655364]
[1732554202458,28.89655124,241.53,241.52,16.6655364]
[1732554202960,28.89655124,241.58,241.52,0.4775364]
[1732554203160,2.4827,241.67,241.53,14.1402]
[1732554203330,28.89655124,241.6,241.53,14.1402]
[1732554203531,28.89655124,241.6,241.53,30.6729]
[1732554203730,28.89655124,241.68,241.53,30.6729]
[1732554203731,28.89655124,241.62,241.54,28.89655124]
[1732554203932,28.89655124,241.64,241.56,38.89655124]
[1732554204152,28.89655124,241.62,241.54,38.89655124]
[1732554204356,28.89655124,241.62,241.56,10.0]
[1732554204549,6.2052,241.74,241.56,38.89655124]
[1732554204860,28.89655124,241.69,241.62,10.0]
[1732554205064,28.89655124,241.8,241.64,20.0]
[1732554205065,28.89655124,241.71,241.64,20.0]
[1732554205256,28.89655124,241.73,241.68,10.0]
[1732554205438,28.89655124,241.79,241.72,10.0]
[1732554205635,28.89655124,241.75,241.68,10.0]
[1732554205837,12.4804,241.89,241.64,16.3622]
[1732554205838,28.89655124,241.77,241.71,20.0]
[1732554206149,28.89655124,241.79,241.74,10.0]
[1732554206345,28.89655124,241.79,241.75,4.1365]
[1732554206647,28.89655124,241.79,241.74,10.0]
[1732554207034,28.89655124,241.75,241.71,6.3045]
[1732554207243,28.89655124,241.73,241.71,6.3045]
[1732554208145,28.89655124,241.73,241.64,16.3622]
[1732554208456,28.89655124,241.66,241.64,16.3622]
[1732554208959,28.89655124,241.66,241.59,6.1908]
[1732554209162,28.89655124,241.63,241.6,10.0]
[1732554209668,28.89655124,241.67,241.6,38.89655124]
[1732554209969,8.6851,241.79,241.62,38.89655124]
[1732554209970,28.89655124,241.71,241.62,38.89655124]
[1732554210140,28.89655124,241.71,241.62,48.89655124]
[1732554210340,28.89655124,241.71,241.64,10.0]
[1732554210636,28.89655124,241.69,241.64,10.0]
[1732554210837,28.89655124,241.69,241.62,10.0]
[1732554211045,28.89655124,241.65,241.6,4.139]
[1732554211657,28.89655124,241.67,241.63,10.0]
[1732554211862,28.89655124,241.69,241.61,38.89655124]
[1732554212046,28.89655124,241.69,241.63,10.0]
[1732554212249,28.89655124,241.65,241.59,6.1908]
[1732554212450,28.89655124,241.62,241.59,6.1908]
[1732554213388,28.89655124,241.62,241.55,15.4804]
[1732554213659,28.89655124,241.62,241.55,25.4804]
[1732554214044,28.89655124,241.6,241.55,19.6202]
[1732554214243,28.89655124,241.58,241.55,15.4804]
[1732554215075,28.89655124,241.6,241.55,15.4804]
[1732554215371,154.5,241.73,241.56,10.0]
[1732554215372,28.89655124,241.62,241.56,10.0]
[1732554215745,134.5,241.73,241.55,15.4804]
[1732554215746,28.89655124,241.58,241.55,15.4804]
[1732554216046,28.89655124,241.6,241.55,19.6202]
[1732554216460,28.89655124,241.6,241.55,15.4804]
[1732554217172,28.89655124,241.58,241.55,15.4804]
[1732554217349,28.89655124,241.6,241.55,29.6202]
[1732554217560,28.89655124,241.64,241.55,48.51675124]
[1732554217782,28.89655124,241.66,241.58,10.0]
[1732554218250,28.89655124,241.64,241.58,10.0]
[1732554218453,17.76369594,241.64,241.56,20.0]
[1732554218652,17.76369594,241.64,241.58,14.1393]
[1732554218966,17.76369594,241.64,241.58,4.1393]
[1732554219543,6.2051,241.74,241.58,14.1393]
[1732554219544,17.76369594,241.66,241.58,14.1393]
[1732554219750,17.76369594,241.66,241.59,23.902374]
[1732554220174,2.4821,241.73,241.56,17.76369594]
[1732554220175,17.76369594,241.64,241.56,17.76369594]
[1732554220346,17.76369594,241.64,241.56,21.90329594]
[1732554220672,1.73326968,241.77,241.55,25.4804]
[1732554220673,17.76369594,241.68,241.61,10.0]
[1732554220905,17.76369594,241.66,241.59,4.1392]
[1732554221076,17.76369594,241.68,241.6,17.76369594]
[1732554221259,2.4818,241.76,241.59,4.1392]
[1732554221260,17.76369594,241.66,241.59,4.1392]
[1732554221566,17.76369594,241.64,241.55,15.4804]
[1732554221774,17.76369594,241.62,241.55,15.4804]
[1732554221947,17.76369594,241.64,241.57,10.0]
[1732554222274,17.76369594,241.66,241.58,17.76369594]
[1732554222657,17.76369594,241.66,241.59,4.1392]
[1732554222861,17.76369594,241.68,241.6,27.76369594]
[1732554223164,17.76369594,241.7,241.62,17.76369594]
[1732554223474,17.76369594,241.7,241.61,33.902374]
[1732554223475,17.76369594,241.74,241.66,17.76369594]
[1732554223770,17.76369594,241.76,241.66,27.76369594]
[1732554223982,17.76369594,241.76,241.69,10.0]
[1732554224149,17.76369594,241.78,241.7,17.76369594]
[1732554224466,17.76369594,241.78,241.69,10.0]
[1732554224672,17.76369594,241.78,241.7,21.90099594]
[1732554224874,17.76369594,241.78,241.71,10.0]
[1732554225181,17.76369594,241.78,241.66,10.3449]
[1732554225182,17.76369594,241.74,241.65,10.0]
[1732554225475,17.76369594,241.76,241.69,10.0]
[1732554225647,17.76369594,241.76,241.7,17.76369594]
[1732554225987,17.76369594,241.82,241.74,17.76369594]
[1732554226282,17.76369594,241.86,241.78,10.0]
[1732554226450,17.76369594,241.86,241.77,6.164]
[1732554226650,17.76369594,241.84,241.77,6.164]
[1732554226946,17.76369594,241.82,241.77,6.164]
[1732554227776,17.76369594,241.78,241.71,16.4904]
[1732554228072,18.80629,241.91,241.71,16.4904]
[1732554228073,17.76369594,241.8,241.71,20.6275]
[1732554228272,17.76369594,241.78,241.71,10.6275]
[1732554228689,17.76369594,241.78,241.71,20.6275]
[1732554229049,17.76369594,241.82,241.74,17.76369594]
[1732554229276,17.76369594,241.82,241.74,10.0]
[1732554229477,17.76369594,241.86,241.78,10.0]
[1732554229669,17.76369594,241.86,241.78,44.39799594]
[1732554229972,17.76369594,241.9,241.82,17.76369594]
[1732554230349,17.76369594,241.9,241.82,27.76369594]
[1732554230544,17.76369594,241.88,241.8,17.76369594]
[1732554231051,17.76369594,241.93,241.85,23.902374]
[1732554231353,17.76369594,241.93,241.86,17.76369594]
[1732554231563,17.76369594,241.93,241.84,17.76369594]
[1732554232276,28.80071864,241.92,241.83,35.11251864]
[1732554232463,28.80071864,241.92,241.83,45.11251864]
[1732554232653,28.80071864,241.92,241.83,35.11251864]
[1732554233049,28.80071864,241.92,241.83,49.24741864]
[1732554233259,31.28081864,241.92,241.83,39.24741864]
[1732554233580,28.80071864,241.9,241.83,39.24741864]
[1732554233754,28.80071864,241.92,241.84,23.902374]
[1732554233958,28.80071864,241.92,241.83,39.24741864]
[1732554234275,28.80071864,241.88,241.83,6.3118]
[1732554234859,28.80071864,241.9,241.83,6.3118]
[1732554235459,28.80071864,241.9,241.83,39.24751864]
[1732554235654,28.80071864,241.9,241.83,10.4468]
[1732554236075,28.80071864,241.9,241.83,6.3118]
[1732554236580,28.80071864,241.84,241.78,20.7701]
[1732554236778,28.80071864,241.86,241.79,28.80071864]
[1732554237081,28.80071864,241.86,241.78,20.7701]
[1732554237980,28.80071864,241.88,241.79,62.57760264]
[1732554238482,28.80071864,241.88,241.81,28.80071864]
[1732554238675,28.80071864,241.9,241.81,38.80071864]
[1732554238982,28.80071864,241.86,241.79,52.57760264]
[1732554239580,28.80071864,241.84,241.78,16.6343]
[1732554239784,2.4806,241.87,241.78,16.6343]
[1732554239785,28.80071864,241.82,241.78,16.6343]
[1732554239975,28.80071864,241.8,241.73,28.80071864]
[1732554240171,28.80071864,241.8,241.72,42.93771864]
[1732554240374,28.80071864,241.76,241.71,21.7317]
[1732554240678,0.12549,241.86,241.71,21.7317]
[1732554240679,28.80071864,241.78,241.71,25.8688]
[1732554241279,28.80071864,241.82,241.74,28.80071864]
[1732554241500,28.80071864,241.88,241.8,28.80071864]
[1732554241784,4.1511556,242.0,241.84,28.80071864]
[1732554241958,28.80071864,241.94,241.86,28.80071864]
[1732554242167,28.80071864,241.98,241.9,38.80071864]
[1732554242388,28.80071864,241.98,241.9,28.80071864]
[1732554242596,28.80071864,241.98,241.9,38.80071864]
[1732554242886,28.80071864,242.0,241.92,28.80071864]
[1732554243413,28.80071864,242.02,241.94,28.80071864]
[1732554243564,28.80071864,242.04,241.98,28.80071864]
[1732554243767,28.80071864,242.08,242.0,28.80071864]
[1732554243960,28.80071864,242.08,241.95,4.133]
[1732554243961,28.80071864,242.02,241.94,28.80071864]
[1732554244192,28.80071864,241.97,241.9,28.80071864]
[1732554244369,28.80071864,241.93,241.86,28.80071864]
[1732554244571,0.12549,242.03,241.85,21.7317]
[1732554244781,28.80071864,241.88,241.85,15.6095]
[1732554244981,28.80071864,241.86,241.79,6.5561]
[1732554245395,28.80071864,241.84,241.79,6.5561]
[1732554246387,28.80071864,241.82,241.78,15.2141]
[1732554247170,28.80071864,241.84,241.78,15.2141]
[1732554247366,28.80071864,241.8,241.73,6.1102]
[1732554247578,28.80071864,241.8,241.7,16.4215]
[1732554247579,28.80071864,241.74,241.7,16.4215]
[1732554247786,28.80071864,241.72,241.67,6.1102]
[1732554248188,28.80071864,241.8,241.63,16.4215]
[1732554248189,28.80071864,241.7,241.63,16.4215]
[1732554248489,28.80071864,241.68,241.63,16.4215]
[1732554248864,28.80071864,241.7,241.63,45.22221864]
[1732554249072,28.80071864,241.68,241.63,16.4215]
[1732554249977,28.80071864,241.7,241.63,20.5599]
[1732554250179,28.80071864,241.74,241.67,28.80071864]
[1732554250466,28.80071864,241.7,241.64,23.902374]
[1732554250770,28.80071864,241.7,241.63,49.36061864]
[1732554250771,28.80071864,241.7,241.63,59.36061864]
[1732554250995,28.80071864,241.72,241.64,23.902374]
[1732554251489,1.7284975,241.86,241.64,23.902374]
[1732554251490,28.80071864,241.74,241.68,23.776884]
[1732554251693,28.80071864,241.78,241.69,38.92620864]
[1732554251896,28.80071864,241.8,241.71,28.92620864]
[1732554252094,28.80071864,241.8,241.73,28.92620864]
[1732554252394,28.80071864,241.82,241.75,28.80071864]
[1732554252593,28.80071864,241.86,241.79,28.80071864]
[1732554252787,28.80071864,241.86,241.78,39.548474]
[1732554253087,28.80071864,241.86,241.78,15.6461]
[1732554253293,28.80071864,241.86,241.79,28.80071864]
[1732554253590,28.80071864,241.86,241.78,15.6461]
[1732554253591,28.80071864,241.9,241.83,28.80071864]
[1732554253774,28.80071864,241.92,241.83,28.80071864]
[1732554254397,28.80071864,241.94,241.87,28.80071864]
[1732554254704,28.80071864,241.98,241.89,28.80071864]
[1732554254880,28.80071864,241.98,241.89,38.80071864]
[1732554255393,9.02339092,242.0,241.93,32.93411864]
[1732554255589,6.3989,242.15,241.97,28.80071864]
[1732554255590,28.80071864,242.04,241.97,28.80071864]
[1732554255906,6.1945,242.15,241.97,28.80071864]
[1732554256069,28.80071864,242.0,241.93,32.93411864]
[1732554256269,28.80071864,241.98,241.93,4.1334]
[1732554256467,28.80071864,241.96,241.89,28.80071864]
[1732554256672,28.80071864,241.96,241.89,4.134]
[1732554256986,28.80071864,241.96,241.9,23.902374]
[1732554257296,28.80071864,241.96,241.89,4.134]
[1732554257487,0.12549,242.03,241.86,4.1344]
[1732554257488,28.80071864,241.94,241.86,4.1344]
[1732554257684,0.12549,242.03,241.89,28.80071864]
[1732554257685,28.80071864,241.98,241.89,28.80071864]
[1732554257875,28.80071864,241.98,241.91,28.80071864]
[1732554258072,28.80071864,242.0,241.92,23.902374]
[1732554258392,28.80071864,242.04,241.97,28.80071864]
[1732554258980,28.80071864,242.06,241.99,28.80071864]
[1732554259582,28.80071864,242.04,241.99,4.1322]
[1732554259903,28.80071864,242.08,242.01,28.80071864]
[1732554260585,28.80071864,242.06,242.0,23.902374]
[1732554260906,28.80071864,242.04,241.99,4.1322]
[1732554261083,0.12549,242.14,241.96,16.5681]
[1732554261084,28.80071864,242.02,241.96,16.5681]
[1732554261285,28.80071864,242.02,241.96,20.7009]
[1732554261474,28.80071864,242.04,241.98,4.1325]
[1732554261676,28.80071864,242.04,241.99,0.12549]
[1732554261890,28.80071864,242.06,241.99,23.902374]
[1732554262095,28.80071864,242.02,241.96,16.5681]
[1732554263583,28.80071864,241.98,241.96,16.5681]
[1732554263790,28.80071864,241.98,241.9,4.1339]
[1732554264006,28.80071864,241.96,241.9,4.1339]
[1732554264313,28.80071864,241.96,241.89,28.80071864]
[1732554264889,28.80071864,241.98,241.9,23.902374]
[1732554265122,28.80071864,241.98,241.89,28.80071864]
[1732554265403,28.80071864,242.04,241.9,4.1339]
[1732554265404,28.80071864,241.96,241.9,4.1339]
[1732554265990,28.80071864,241.98,241.9,4.1339]
[1732554266208,28.80071864,242.0,241.92,23.902374]
[1732554267209,28.80071864,241.98,241.93,4.1334]
[1732554268021,28.80071864,241.96,241.91,4.1336]
[1732554268393,28.80071864,241.96,241.89,28.80071864]
[1732554268394,28.80071864,241.96,241.9,23.902374]
[1732554268708,28.55071864,241.96,241.9,23.902374]
[1732554269009,28.80071864,241.98,241.89,32.93461864]
[1732554269685,28.80071864,241.96,241.89,32.93461864]
[1732554270085,28.80071864,241.96,241.9,0.12549]
[1732554270710,28.80071864,241.96,241.91,4.1337]
[1732554271582,28.80071864,241.98,241.91,4.1337]
[1732554272195,28.80071864,242.04,241.95,28.80071864]
[1732554272502,17.70551207,242.02,241.95,17.70551207]
[1732554272822,17.70551207,242.04,241.97,0.12549]
[1732554273309,17.70551207,242.08,242.0,23.902374]
[1732554274216,19.0143889,242.25,242.07,17.70551207]
[1732554274395,28.74197894,242.16,242.08,0.12549]
[1732554274603,28.74197894,242.16,242.09,28.74197894]
[1732554274798,28.74197894,242.18,242.12,0.12549]
[1732554275110,28.74197894,242.16,242.12,0.12549]
[1732554275291,28.74197894,242.14,242.06,23.776884]
[1732554275491,28.74197894,242.12,242.07,0.12549]
[1732554275912,28.74197894,242.12,242.03,55.82897894]
[1732554276119,28.74197894,242.12,242.04,0.12549]
[1732554276694,28.74197894,242.1,242.04,0.12549]
[1732554277123,28.74197894,242.06,242.03,16.6244]
[1732554277324,28.74197894,242.06,242.0,4.132]
[1732554277325,28.74197894,242.06,242.01,23.902374]
[1732554277545,28.74197894,242.06,242.01,23.776884]
[1732554277720,28.74197894,242.04,241.96,21.5998]
[1732554278099,28.74197894,242.0,241.96,21.5998]
[1732554278310,10.12549,242.14,241.88,10.3355]
[1732554278311,28.74197894,241.98,241.9,6.0886]
[1732554278629,28.74197894,241.96,241.9,6.0886]
[1732554279216,28.74197894,241.96,241.9,10.2224]
[1732554279420,2.4795,241.98,241.88,15.0687]
[1732554279421,28.74197894,241.94,241.88,15.0687]
[1732554279597,28.74197894,241.92,241.88,15.0687]
[1732554279803,28.74197894,241.94,241.88,15.0687]
[1732554280219,28.74197894,241.9,241.83,28.74197894]
[1732554280528,0.12549,241.97,241.82,10.5837]
[1732554280529,28.74197894,241.88,241.82,10.5837]
[1732554281221,28.74197894,241.88,241.82,6.4486]
[1732554281604,28.74197894,241.9,241.82,10.5838]
[1732554282527,6.1988,241.98,241.82,10.5838]
[1732554282528,28.74197894,241.94,241.85,28.74197894]
[1732554282704,28.74197894,241.94,241.87,28.74197894]
[1732554282899,28.74197894,241.96,241.87,28.74197894]
[1732554283312,28.74197894,241.96,241.88,28.036574]
[1732554283527,28.74197894,242.0,241.92,23.902374]
[1732554283897,28.74197894,241.98,241.92,23.902374]
[1732554284100,28.74197894,241.98,241.91,0.12549]
[1732554285528,28.74197894,242.0,241.92,23.776884]
[1732554285708,28.74197894,242.0,241.93,0.12549]
[1732554286408,28.74197894,242.04,241.96,28.74197894]
[1732554286631,28.74197894,242.04,241.97,23.902374]
[1732554286931,28.74197894,242.04,241.97,0.12549]
[1732554287231,28.74197894,242.0,241.94,0.12549]
[1732554287605,28.74197894,241.98,241.94,0.12549]
[1732554287823,28.74197894,241.98,241.93,0.12549]
[1732554288607,28.74197894,241.98,241.92,0.12549]
[1732554288809,28.74197894,241.94,241.84,28.74197894]
[1732554289009,28.74197894,241.92,241.84,32.87687894]
[1732554289229,28.74197894,241.9,241.84,4.1349]
[1732554289525,28.74197894,241.9,241.82,35.19057894]
[1732554289826,28.74197894,241.9,241.83,4.135]
[1732554290030,28.74197894,241.88,241.82,6.4486]
[1732554290204,28.74197894,241.84,241.78,4.1358]
[1732554290403,28.74197894,241.82,241.76,4.1362]
[1732554290606,28.74197894,241.84,241.76,32.87817894]
[1732554291524,28.74197894,241.78,241.71,4.137]
[1732554291736,28.74197894,241.8,241.67,4.1377]
[1732554291737,28.74197894,241.72,241.67,4.1377]
[1732554291904,28.74197894,241.69,241.63,6.1505]
[1732554292625,28.74197894,241.65,241.62,15.5892]
[1732554292818,28.74197894,241.63,241.57,4.1395]
[1732554293016,28.74197894,241.65,241.57,4.1395]
[1732554293231,28.74197894,241.65,241.58,28.74197894]
[1732554293531,28.74197894,241.7,241.62,28.74197894]
[1732554294408,28.74197894,241.68,241.6,28.74197894]
[1732554295033,28.74197894,241.68,241.61,23.902374]
[1732554295608,28.74197894,241.68,241.62,4.1387]
[1732554295839,28.74197894,241.7,241.63,23.902374]
[1732554296628,28.74197894,241.68,241.62,4.1387]
[1732554296808,28.74197894,241.66,241.62,4.1387]
[1732554297710,28.74197894,241.66,241.59,28.041574]
[1732554298531,17.76012528,241.66,241.59,28.041574]
[1732554300006,17.76012528,241.68,241.62,0.12549]
[1732554300504,17.76012528,241.68,241.62,17.88561528]
[1732554300714,20.0,241.84,241.67,23.902374]
[1732554300715,17.76012528,241.74,241.67,23.902374]
[1732554300913,17.76012528,241.74,241.69,0.12549]
[1732554301326,17.76012528,241.74,241.67,23.776884]
[1732554301327,17.76012528,241.72,241.64,17.76012528]
[1732554301520,17.76012528,241.7,241.63,23.902374]
[1732554301714,2.60699,241.79,241.59,14.4873]
[1732554301715,17.76012528,241.69,241.61,17.76012528]
[1732554302030,17.76012528,241.71,241.63,17.76012528]
[1732554302238,17.76012528,241.73,241.65,17.76012528]
[1732554302416,17.76012528,241.77,241.69,17.76012528]
[1732554302614,17.76012528,241.79,241.71,17.76012528]
[1732554303022,17.76012528,241.79,241.72,0.12549]
[1732554303231,17.76012528,241.77,241.7,23.902374]
[1732554303410,17.76012528,241.79,241.71,17.76012528]
[1732554303612,17.76012528,241.79,241.72,4.26249]
[1732554304426,17.76012528,241.73,241.67,4.1378]
[1732554304719,17.76012528,241.69,241.61,4.1387]
[1732554304912,17.76012528,241.64,241.6,30.3529]
[1732554305126,17.76012528,241.62,241.6,15.0]
[1732554305618,2.60879,241.61,241.6,15.0]
[1732554306443,17.76012528,241.53,241.52,0.4775364]
[1732554306741,17.88561528,241.53,241.52,0.4775364]
[1732554307644,20.36971528,241.53,241.52,0.4775364]
[1732554308140,17.76012528,241.53,241.52,0.4775364]
[1732554308340,29.02568713,241.53,241.52,0.4775364]
[1732554309551,28.90019713,241.54,241.52,0.4775364]
[1732554309855,0.12549,241.53,241.52,0.4775364]
[1732554310019,28.90019713,241.54,241.52,0.4775364]
[1732554310522,28.90019713,241.56,241.52,0.4775364]
[1732554310911,28.90019713,241.54,241.52,0.4775364]
[1732554311111,0.12549,241.53,241.52,0.4775364]
[1732554311746,2.60959,241.53,241.52,0.4775364]
[1732554312318,12.60959,241.53,241.52,0.4775364]
[1732554312534,22.60959,241.53,241.52,0.4775364]
[1732554312919,12.60959,241.53,241.52,0.4775364]
[1732554313124,2.60959,241.53,241.52,0.4775364]
[1732554313343,12.60959,241.53,241.52,0.4775364]
[1732554313523,2.60959,241.53,241.52,0.4775364]
[1732554313920,2.4841,241.53,241.52,0.4775364]
[1732554314920,28.90019713,241.54,241.52,0.4775364]
[1732554315223,31.38429713,241.54,241.52,0.4775364]
[1732554315550,0.12549,241.51,241.33,33.04369713]
[1732554315744,28.90019713,241.4,241.33,4.1435]
[1732554316036,28.90019713,241.42,241.33,33.04369713]
[1732554316217,28.90019713,241.42,241.35,28.90019713]
[1732554316636,28.90019713,241.42,241.28,0.4775364]
[1732554316637,28.90019713,241.37,241.28,0.4775364]
[1732554316835,10.0,241.47,241.29,28.90019713]
[1732554317042,10.0,241.47,241.28,0.4775364]
[1732554317043,28.90019713,241.36,241.28,4.6219364]
[1732554317247,28.90019713,241.34,241.25,28.90019713]
[1732554317540,28.90019713,241.32,241.23,28.90019713]
[1732554317739,28.90019713,241.3,241.23,4.1453]
[1732554317944,28.90019713,241.3,241.23,33.04549713]
[1732554318119,28.90019713,241.32,241.23,33.04549713]
[1732554318319,28.90019713,241.28,241.2,44.04639713]
[1732554318549,28.90019713,241.3,241.22,28.90019713]
[1732554318753,28.90019713,241.24,241.13,6.2455]
[1732554318922,28.90019713,241.17,241.13,6.2455]
[1732554319454,28.90019713,241.17,241.11,15.0]
[1732554322024,31.38809713,241.17,241.11,15.0]
[1732554323248,0.12549,241.16,241.11,15.0]
[1732554323936,28.90019713,241.17,241.11,15.0]
[1732554324339,0.12549,241.13,241.11,15.0]
[1732554324641,28.90019713,241.12,241.11,15.0]
[1732554324827,29.02568713,241.12,241.11,15.0]
[1732554325022,39.02568713,241.12,241.11,15.0]
[1732554325227,28.90019713,241.12,241.11,15.0]
[1732554325631,1.72329703,241.22,241.11,15.0]
[1732554325826,28.90019713,241.13,241.11,15.0]
[1732554326546,28.90019713,241.17,241.11,19.1474]
[1732554326749,28.90019713,241.19,241.11,19.1474]
[1732554327131,28.90019713,241.19,241.12,28.90019713]
[1732554327331,28.90019713,241.21,241.12,28.90019713]
[1732554327548,28.90019713,241.23,241.14,28.90019713]
[1732554327856,28.90019713,241.32,241.14,28.90019713]
[1732554327857,28.90019713,241.21,241.14,28.90019713]
[1732554328223,28.90019713,241.17,241.11,19.1473]
[1732554328437,28.90019713,241.15,241.11,19.1473]
[1732554328827,28.90019713,241.15,241.11,15.0]
[1732554329039,28.90019713,241.15,241.11,19.1473]
[1732554329241,28.90019713,241.12,241.11,15.0]
[1732554329651,28.90019713,241.14,241.11,15.0]
[1732554329856,28.90019713,241.2,241.11,48.04759713]
[1732554330364,28.90019713,241.22,241.13,28.90019713]
[1732554330535,28.90019713,241.24,241.15,28.90019713]
[1732554331037,28.90019713,241.22,241.14,23.776884]
[1732554331341,28.90019713,241.24,241.15,28.90019713]
[1732554331648,28.90019713,241.22,241.16,4.1466]
[1732554333061,28.90019713,241.19,241.12,4.1473]
[1732554333232,28.90019713,241.19,241.13,23.776884]
[1732554333436,28.90019713,241.21,241.12,4.1473]
[1732554333635,28.90019713,241.21,241.13,28.90019713]
[1732554334045,28.90019713,241.21,241.12,4.1473]
[1732554334453,28.90019713,241.21,241.13,28.90019713]
[1732554334639,28.90019713,241.21,241.14,4.1469]
[1732554334841,28.90019713,241.23,241.15,28.90019713]
[1732554335031,28.90019713,241.21,241.14,4.1469]
[1732554335972,28.90019713,241.19,241.14,4.1469]
[1732554336176,10.0,241.27,241.11,15.0]
[1732554336450,28.90019713,241.14,241.11,15.0]
[1732554336867,28.90019713,241.14,241.11,19.1474]
[1732554337054,28.90019713,241.14,241.11,15.0]
[1732554337263,28.90019713,241.2,241.11,15.0]
[1732554337264,28.90019713,241.12,241.11,15.0]
[1732554337651,28.90019713,241.14,241.11,15.0]
[1732554337855,28.90019713,241.18,241.11,19.1474]
[1732554338457,28.90019713,241.2,241.11,48.04759713]
[1732554338864,28.90019713,241.18,241.11,19.1474]
[1732554339072,28.90019713,241.18,241.11,48.04759713]
[1732554339257,28.90019713,241.2,241.11,48.04759713]
[1732554339460,28.90019713,241.18,241.11,19.1474]
[1732554339855,28.90019713,241.2,241.11,48.04759713]
[1732554340165,2.4871,241.25,241.11,19.1474]
[1732554340166,28.90019713,241.16,241.11,19.1474]
[1732554340477,28.90019713,241.16,241.11,15.0]
[1732554340664,1.66759273,241.32,241.15,0.12549]
[1732554341013,6.5473,241.52,241.11,50.2534]
[1732554341014,28.90019713,241.55,241.37,10.0]
[1732554341159,28.90019713,241.57,241.48,28.90019713]
[1732554341471,28.90019713,241.53,241.44,28.90019713]
[1732554342048,28.90019713,241.51,241.43,23.902374]
[1732554342249,28.90019713,241.57,241.47,28.90019713]
[1732554343169,28.90019713,241.55,241.47,28.90019713]
[1732554343477,28.90019713,241.55,241.45,28.90019713]
[1732554343783,28.90019713,241.57,241.47,28.90019713]
[1732554344462,28.90019713,241.55,241.47,28.90019713]
[1732554345059,10.0,241.64,241.45,28.90019713]
[1732554345060,28.90019713,241.53,241.45,28.90019713]
[1732554345774,28.90019713,241.55,241.45,28.90019713]
[1732554346077,28.90019713,241.52,241.44,27.918584]
[1732554346270,28.90019713,241.54,241.45,28.90019713]
[1732554346673,2.483,241.64,241.48,28.90019713]
[1732554346857,28.90019713,241.58,241.49,23.776884]
[1732554347063,28.90019713,241.58,241.5,28.90019713]
[1732554347598,28.90019713,241.6,241.52,28.90019713]
[1732554347773,28.90019713,241.56,241.48,28.90019713]
[1732554348262,28.90019713,241.58,241.48,33.04119713]
[1732554348466,28.90019713,241.58,241.5,28.90019713]
[1732554349172,28.90019713,241.58,241.51,23.776884]
[1732554349376,28.90019713,241.58,241.5,28.90019713]
[1732554349688,28.90019713,241.56,241.48,33.04119713]
[1732554350188,28.90019713,241.58,241.48,33.04119713]
[1732554350389,28.90019713,241.56,241.48,33.04119713]